fUSD/lending_fUSD_20240526
["ID","MTS","AMOUNT","RATE_DAILY","PERIOD"]
[327975332,1716732682904,-500.0,0.00029589,4]
[327975333,1716732682914,-500.0,0.00029589,4]
[327975334,1716732682924,-500.0,0.00029589,4]
[327975335,1716732682935,-500.0,0.00029589,4]
[327975336,1716732682946,-500.0,0.00029589,4]
[327975337,1716732682956,-544.35,0.00029589,2]
[327975338,1716732682966,-202.43090383,0.00029589,4]
[327975339,1716732682976,-500.0,0.00029589,4]
[327975340,1716732682987,-500.0,0.00029589,4]
[327975341,1716732682996,-500.0,0.00029589,4]
[327975342,1716732683007,-500.0,0.00029589,4]
[327975343,1716732683017,-500.0,0.00029589,4]
[327975344,1716732683027,-500.0,0.00029589,4]
[327975345,1716732683037,-607.01,0.00029589,4]
[327975346,1716732683048,-500.0,0.00029589,4]
[327975347,1716732683058,-869.48,0.00029589,4]
[327975348,1716732683069,-500.0,0.00029589,4]
[327975349,1716732683079,-500.0,0.00029589,4]
[327975350,1716732683089,-500.0,0.00029589,4]
[327975351,1716732683099,-598.19,0.00029589,4]
[327975352,1716732683108,-460.76017856,0.00029589,4]
[327975353,1716732683119,-501.39,0.00029589,4]
[327975354,1716732683129,-565.06,0.00029589,4]
[327975355,1716732683139,-500.0,0.00029589,4]
[327975356,1716732683148,-536.08,0.00029589,4]
[327975357,1716732683159,-500.0,0.00029589,4]
[327975358,1716732683168,-500.0,0.00029589,4]
[327975359,1716732683179,-500.0,0.00029589,4]
[327975360,1716732683188,-494.8429999,0.00029589,4]
[327975361,1716732683198,-500.0,0.00029589,4]
[327975362,1716732683208,-500.0,0.00029589,4]
[327975363,1716732683217,-500.0,0.00029589,4]
[327975364,1716732683227,-500.0,0.00029589,4]
[327975365,1716732683237,-500.0,0.00029589,4]
[327975366,1716732683247,-500.0,0.00029589,4]
[327975367,1716732683257,-189.72462506,0.00029589,4]
[327975368,1716732683267,-500.0,0.00029589,4]
[327975369,1716732683276,-500.0,0.00029589,4]
[327975370,1716732683286,-500.0,0.00029589,4]
[327975371,1716732683296,-575.01,0.00029589,4]
[327975372,1716732683305,-500.0,0.00029589,4]
[327975373,1716732683315,-500.0,0.00029589,4]
[327975374,1716732683325,-500.0,0.00029589,4]
[327975375,1716732683334,-500.0,0.00029589,4]
[327975376,1716732683344,-179.19,0.00029589,4]
[327975377,1716732683353,-664.28,0.00029589,4]
[327975378,1716732683362,-193.036136,0.00029589,7]
[327975379,1716732683372,-193.036136,0.00029589,7]
[327975380,1716732683381,-500.0,0.00029589,4]
[327975381,1716732683390,-500.0,0.00029589,4]
[327975382,1716732683401,-500.0,0.00029589,4]
[327975383,1716732683410,-500.0,0.00029589,4]
[327975384,1716732683420,-1420.49,0.00029589,4]
[327975385,1716732683431,-500.0,0.00029589,4]
[327975386,1716732683441,-500.0,0.00029589,4]
[327975387,1716732683451,-500.0,0.00029589,4]
[327975388,1716732683462,-911.95,0.00029589,4]
[327975389,1716732683477,-532.91,0.00029589,4]
[327975390,1716732683487,-876.64,0.00029589,4]
[327975391,1716732683497,-845.02,0.00029589,4]
[327975392,1716732683508,-500.0,0.00029589,4]
[327975393,1716732683518,-1217.15,0.00029589,4]
[327975394,1716732683528,-500.0,0.00029589,4]
[327975395,1716732683538,-500.0,0.00029589,4]
[327975396,1716732683549,-500.0,0.00029589,4]
[327975397,1716732683559,-500.0,0.00029589,4]
[327975398,1716732683570,-1573.33,0.00029589,4]
[327975399,1716732683579,-500.0,0.00029589,4]
[327975400,1716732683590,-1943.35,0.00029589,4]
[327975401,1716732683600,-647.0,0.00029589,4]
[327975402,1716732683610,-433.93523424,0.00029589,4]
[327975403,1716732683620,-827.18,0.00029589,4]
[327975404,1716732683631,-525.9,0.00029589,4]
[327975405,1716732683642,-1647.19,0.00029589,4]
[327975406,1716732683652,-656.92,0.00029589,4]
[327975407,1716732683662,-1479.16,0.00029589,4]
[327975408,1716732683673,-500.0,0.00029589,4]
[327975409,1716732683683,-859.25,0.00029589,4]
[327975410,1716732683693,-500.0,0.00029589,4]
[327975411,1716732683704,-705.7,0.00029589,4]
[327975412,1716732683715,-500.0,0.00029589,4]
[327975413,1716732683726,-524.26,0.00029589,4]
[327975414,1716732683737,-852.83,0.00029589,4]
[327975415,1716732683747,-792.18,0.00029589,4]
[327975416,1716732683758,-9047.47,0.00029589,4]
[327975417,1716732683768,-2563.75,0.00029589,4]
[327975418,1716732683779,-500.0,0.00029589,4]
[327975419,1716732683789,-500.0,0.00029589,4]
[327975420,1716732683799,-543.61,0.00029589,4]
[327975421,1716732683810,-657.54,0.00029589,4]
[327975422,1716732683820,-937.7,0.00029589,4]
[327975423,1716732683831,-1533.52,0.00029589,4]
[327975424,1716732683842,-782.0,0.00029589,4]
[327975425,1716732683852,-1870.6,0.00029589,4]
[327975426,1716732683862,-358.66020292,0.00029589,4]
[327975427,1716732683872,-523.58,0.00029589,4]
[327975428,1716732683882,-500.0,0.00029589,4]
[327975429,1716732683892,-662.47,0.00029589,4]
[327975430,1716732683902,-611.87,0.00029589,4]
[327975431,1716732683912,-709.98,0.00029589,4]
[327975432,1716732683924,-500.0,0.00029589,4]
[327975433,1716732683934,-500.0,0.00029589,4]
[327975434,1716732683945,-739.81,0.00029589,4]
[327975435,1716732683955,-6199.76,0.00029589,4]
[327975436,1716732683965,-500.0,0.00029589,4]
[327975437,1716732683976,-724.86,0.00029589,4]
[327975438,1716732683986,-1320.63,0.00029589,4]
[327975439,1716732683996,-500.0,0.00029589,4]
[327975440,1716732684005,-500.0,0.00029589,4]
[327975441,1716732684015,-500.0,0.00029589,4]
[327975442,1716732684025,-852.95,0.00029589,4]
[327975443,1716732684036,-2564.82,0.00029589,4]
[327975444,1716732684047,-818.52,0.00029589,4]
[327975445,1716732684057,-2538.12,0.00029589,4]
[327975446,1716732684067,-571.73,0.00029589,4]
[327975447,1716732684076,-500.0,0.00029589,4]
[327975448,1716732684087,-598.56,0.00029589,4]
[327975449,1716732684096,-500.0,0.00029589,4]
[327975450,1716732684106,-2937.07,0.00029589,4]
[327975451,1716732684115,-1041.17,0.00029589,4]
[327975452,1716732684125,-500.0,0.00029589,4]
[327975453,1716732684136,-500.0,0.00029589,4]
[327975454,1716732684145,-656.51,0.00029589,4]
[327975455,1716732684156,-500.0,0.00029589,4]
[327975456,1716732684166,-1310.5,0.00029589,4]
[327975457,1716732684176,-500.0,0.00029589,4]
[327975458,1716732684186,-552.73,0.00029589,4]
[327975459,1716732684196,-967.98,0.00029589,4]
[327975460,1716732684206,-500.0,0.00029589,4]
[327975461,1716732684217,-1148.48,0.00029589,4]
[327975462,1716732684227,-795.96,0.00029589,4]
[327975463,1716732684237,-500.0,0.00029589,4]
[327975464,1716732684247,-678.18,0.00029589,4]
[327975465,1716732684257,-576.35,0.00029589,4]
[327975466,1716732684268,-500.0,0.00029589,4]
[327975467,1716732684277,-585.71,0.00029589,4]
[327975468,1716732684288,-606.32,0.00029589,4]
[327975469,1716732684298,-1027.88,0.00029589,4]
[327975470,1716732684308,-2390.71,0.00029589,4]
[327975471,1716732684318,-343.41720021,0.00029589,4]
[327975472,1716732684328,-720.94,0.00029589,4]
[327975473,1716732684338,-884.01,0.00029589,4]
[327975474,1716732684348,-371.37065,0.00029589,7]
[327975475,1716732684359,-571.26,0.00029589,4]
[327975476,1716732684370,-856.1063,0.00029589,7]
[327975477,1716732684381,-1408.04,0.00029589,4]
[327975478,1716732684392,-371.37065,0.00029589,7]
[327975479,1716732684402,-500.0,0.00029589,4]
[327975480,1716732684413,-500.0,0.00029589,4]
[327975481,1716732684424,-500.0,0.00029589,4]
[327975482,1716732684435,-500.0,0.00029589,4]
[327975483,1716732684446,-856.1063,0.00029589,7]
[327975484,1716732684457,-1268.26,0.00029589,4]
[327975485,1716732684470,-1085.42,0.00029589,4]
[327975486,1716732684480,-8694.34,0.00029589,4]
[327975487,1716732684491,-500.0,0.00029589,4]
[327975488,1716732684501,-1268.05,0.00029589,4]
[327975489,1716732684513,-1448.06,0.00029589,4]
[327975490,1716732684524,-972.62,0.00029589,4]
[327975491,1716732684534,-3904.28,0.00029589,4]
[327975492,1716732684545,-573.16,0.00029589,4]
[327975493,1716732684556,-914.87,0.00029589,4]
[327975494,1716732684566,-1089.59,0.00029589,4]
[327975495,1716732684577,-500.0,0.00029589,4]
[327975496,1716732684587,-885.34,0.00029589,4]
[327975497,1716732684598,-591.51,0.00029589,4]
[327975498,1716732684609,-500.0,0.00029589,4]
[327975499,1716732684619,-1079.94,0.00029589,4]
[327975500,1716732684630,-879.76,0.00029589,4]
[327975501,1716732684641,-1841.81,0.00029589,4]
[327975502,1716732684652,-500.0,0.00029589,4]
[327975503,1716732684910,-625.43,0.00029589,4]
[327975504,1716732684920,-1077.58,0.00029589,4]
[327975505,1716732684931,-500.0,0.00029589,4]
[327975506,1716732684941,-710.46,0.00029589,4]
[327975507,1716732684951,-647.72,0.00029589,4]
[327975508,1716732684961,-568.85,0.00029589,4]
[327975509,1716732684971,-678.18,0.00029589,4]
[327975510,1716732684980,-869.84,0.00029589,4]
[327975511,1716732684990,-500.0,0.00029589,4]
[327975512,1716732684999,-500.0,0.00029589,4]
[327975513,1716732685010,-717.42,0.00029589,4]
[327975514,1716732685020,-576.0,0.00029589,4]
[327975515,1716732685030,-1137.45,0.00029589,4]
[327975516,1716732685039,-500.0,0.00029589,4]
[327975517,1716732685049,-500.0,0.00029589,4]
[327975518,1716732685059,-500.0,0.00029589,4]
[327975519,1716732685069,-500.0,0.00029589,4]
[327975520,1716732685079,-1101.55,0.00029589,4]
[327975521,1716732685088,-623.77,0.00029589,4]
[327975522,1716732685098,-504.89,0.00029589,4]
[327975523,1716732685109,-570.33,0.00029589,4]
[327975524,1716732685119,-853.64,0.00029589,4]
[327975525,1716732685128,-1592.22,0.00029589,4]
[327975526,1716732685138,-1027.97,0.00029589,4]
[327975527,1716732685148,-1044.37,0.00029589,4]
[327975528,1716732685158,-500.0,0.00029589,4]
[327975529,1716732685168,-623.81746922,0.00029589,4]
[327975530,1716732685178,-416.9328176,0.00029589,4]
[327975531,1716732685187,-1313.69,0.00029589,4]
[327975532,1716732685196,-624.18,0.00029589,4]
[327975533,1716732685206,-1190.26,0.00029589,4]
[327975534,1716732685216,-4137.91,0.00029589,4]
[327975535,1716732685225,-1036.79,0.00029589,4]
[327975536,1716732685235,-500.0,0.00029589,4]
[327975537,1716732685245,-500.0,0.00029589,4]
[327975538,1716732685255,-850.51,0.00029589,4]
[327975539,1716732685265,-500.0,0.00029589,4]
[327975540,1716732685274,-916.61,0.00029589,4]
[327975541,1716732685284,-1474.98,0.00029589,4]
[327975542,1716732685294,-707.12,0.00029589,4]
[327975543,1716732685303,-500.0,0.00029589,4]
[327975544,1716732685314,-2412.83,0.00029589,4]
[327975545,1716732685324,-500.0,0.00029589,4]
[327975546,1716732685334,-500.0,0.00029589,4]
[327975547,1716732685344,-687.58,0.00029589,4]
[327975548,1716732685354,-1038.84,0.00029589,4]
[327975549,1716732685364,-500.0,0.00029589,2]
[327975550,1716732685374,-500.0,0.00029589,4]
[327975551,1716732685384,-500.0,0.00029589,4]
[327975552,1716732685394,-928.91,0.00029589,4]
[327975553,1716732685403,-654.73,0.00029589,4]
[327975554,1716732685414,-500.0,0.00029589,4]
[327975555,1716732685423,-592.19,0.00029589,4]
[327975556,1716732685433,-502.52,0.00029589,4]
[327975557,1716732685443,-500.0,0.00029589,4]
[327975558,1716732685454,-500.0,0.00029589,4]
[327975559,1716732685464,-500.0,0.00029589,4]
[327975560,1716732685477,-1244.5,0.00029589,4]
[327975561,1716732685486,-901.87,0.00029589,4]
[327975562,1716732685496,-586.69,0.00029589,4]
[327975563,1716732685507,-827.03,0.00029589,4]
[327975564,1716732685517,-793.2,0.00029589,4]
[327975565,1716732685526,-501.48,0.00029589,4]
[327975566,1716732685536,-709.61,0.00029589,4]
[327975567,1716732685546,-392.04352604,0.00029589,2]
[327975568,1716732685556,-153.2283318,0.00029681,2]
[327975569,1716732685566,-300.0,0.00029684,2]
[327975570,1716732685576,-594.14,0.000297,2]
[327975571,1716732685586,-157.86209062,0.00029718,2]
[327975572,1716732685595,-188.24185154,0.00029763,7]
[327975573,1716732685605,-188.24185154,0.00029763,7]
[327975574,1716732685615,-188.24185154,0.00029763,7]
[327975575,1716732685625,-188.24185154,0.00029763,7]
[327975576,1716732685644,-188.24185154,0.00029763,7]
[327975577,1716732685655,-188.24185154,0.00029763,7]
[327975578,1716732685664,-188.24185154,0.00029763,7]
[327975579,1716732685675,-188.24185154,0.00029763,7]
[327975580,1716732685684,-188.24185154,0.00029763,7]
[327975581,1716732685695,-188.24185154,0.00029763,7]
[327975582,1716732685705,-188.24185154,0.00029763,7]
[327975583,1716732685715,-188.24185154,0.00029763,7]
[327975584,1716732685726,-188.24185154,0.00029763,7]
[327975585,1716732685736,-188.24185154,0.00029763,7]
[327975586,1716732685746,-188.24185154,0.00029763,7]
[327975587,1716732685755,-188.24185154,0.00029763,7]
[327975588,1716732685765,-188.24185154,0.00029763,7]
[327975589,1716732685775,-188.24185154,0.00029763,7]
[327975590,1716732685785,-188.24185154,0.00029763,7]
[327975591,1716732685794,-188.74,0.00029763,7]
[327975592,1716732685804,-753.04240616,0.00029763,7]
[327975593,1716732685818,-753.04240616,0.00029763,7]
[327975594,1716732685840,-753.04240616,0.00029763,7]
[327975595,1716732685860,-753.04240616,0.00029763,7]
[327975596,1716732685881,-165.85904295,0.00029763,7]
[327975597,1716732685906,-165.85904295,0.00029763,7]
[327975598,1716732685933,-165.85904295,0.00029763,7]
[327975599,1716732685966,-165.85904295,0.00029763,7]
[327975600,1716732685993,-165.85904295,0.00029763,7]
[327975601,1716732686016,-165.85904295,0.00029763,7]
[327975602,1716732686038,-166.35,0.00029763,7]
[327975603,1716732686050,-232.27766012,0.00029763,7]
[327975604,1716732686061,-232.27766012,0.00029763,7]
[327975605,1716732686072,-232.27766012,0.00029763,7]
[327975606,1716732686083,-232.27766012,0.00029763,7]
[327975607,1716732686092,-155.72491192,0.00029763,7]
[327975608,1716732686102,-155.72491192,0.00029763,7]
[327975609,1716732686112,-155.72491192,0.00029763,7]
[327975610,1716732686122,-155.72491192,0.00029763,7]
[327975611,1716732686132,-155.72491192,0.00029763,7]
[327975612,1716732686142,-155.72491192,0.00029763,7]
[327975613,1716732686152,-155.72491192,0.00029763,7]
[327975614,1716732686163,-156.22,0.00029763,7]
[327975615,1716732686172,-249.23485907,0.00029763,7]
[327975616,1716732686183,-249.23485907,0.00029763,7]
[327975617,1716732686192,-249.23485907,0.00029763,7]
[327975618,1716732686202,-249.23485907,0.00029763,7]
[327975619,1716732686212,-501.48542222,0.00029763,7]
[327975620,1716732686222,-501.48542222,0.00029763,7]
[327975621,1716732686231,-501.48542222,0.00029763,7]
[327975622,1716732686241,-501.48542222,0.00029763,7]
[327975623,1716732686251,-501.48542222,0.00029763,7]
[327975624,1716732686261,-501.48542222,0.00029763,7]
[327975625,1716732686270,-501.48542222,0.00029763,7]
[327975626,1716732686281,-501.48542222,0.00029763,7]
[327975627,1716732686290,-501.48542222,0.00029763,7]
[327975628,1716732686300,-501.48542222,0.00029763,7]
[327975629,1716732686309,-501.48542222,0.00029763,7]
[327975630,1716732686319,-501.48542222,0.00029763,7]
[327975631,1716732686329,-501.48542222,0.00029763,7]
[327975632,1716732686339,-501.48542222,0.00029763,7]
[327975633,1716732686349,-501.48542222,0.00029763,7]
[327975634,1716732686358,-501.48542222,0.00029763,7]
[327975635,1716732686367,-501.48542222,0.00029763,7]
[327975636,1716732686377,-501.48542222,0.00029763,7]
[327975637,1716732686387,-501.48542222,0.00029763,7]
[327975638,1716732686397,-501.98,0.00029763,7]
[327975639,1716732686407,-2006.01668888,0.00029763,7]
[327975640,1716732686417,-2006.01668888,0.00029763,7]
[327975641,1716732686427,-2006.01668888,0.00029763,7]
[327975642,1716732686437,-2006.01668888,0.00029763,7]
[327975643,1716732686446,-150.0,0.000298,6]
[327975644,1716732686455,-500.0,0.00029858,5]
[327975645,1716732686468,-10707.06410034,0.0002986,2]
[327975646,1716732686477,-500.0,0.00029863,4]
[327975647,1716732686486,-184.1183139,0.00029863,4]
[327975648,1716732686496,-500.0,0.00029863,4]
[327975649,1716732686507,-500.0,0.00029863,4]
[327975650,1716732686517,-500.0,0.00029863,4]
[327975651,1716732686527,-867.51,0.00029863,4]
[327975652,1716732686536,-500.0,0.00029863,4]
[327975653,1716732686548,-500.0,0.00029863,4]
[327975654,1716732686559,-613.37,0.00029863,4]
[327975655,1716732686569,-500.0,0.00029863,4]
[327975656,1716732686579,-500.0,0.00029863,4]
[327975657,1716732686589,-689.25,0.00029863,4]
[327975658,1716732686599,-912.17,0.00029863,4]
[327975659,1716732686610,-500.0,0.00029863,4]
[327975660,1716732686620,-500.0,0.00029863,4]
[327975661,1716732686629,-577.1,0.00029863,4]
[327975662,1716732686639,-520.41615674,0.00029863,4]
[327975663,1716732686648,-579.88230961,0.00029863,4]
[327975664,1716732686658,-3083.08,0.00029863,4]
[327975665,1716732686668,-500.0,0.00029863,4]
[327975666,1716732686677,-500.0,0.00029863,4]
[327975667,1716732686686,-691.79,0.00029863,4]
[327975668,1716732686696,-500.0,0.00029863,4]
[327975669,1716732686706,-500.0,0.00029863,4]
[327975670,1716732686715,-1003.57,0.00029863,4]
[327975671,1716732686725,-702.93,0.00029863,4]
[327975672,1716732686734,-500.0,0.00029863,4]
[327975673,1716732686745,-500.0,0.00029863,4]
[327975674,1716732686755,-900.58,0.00029863,4]
[327975675,1716732686765,-500.0,0.00029863,4]
[327975676,1716732686775,-500.0,0.00029863,4]
[327975677,1716732686784,-891.34,0.00029863,4]
[327975678,1716732686794,-838.16,0.00029863,2]
[327975679,1716732686804,-500.0,0.00029863,4]
[327975680,1716732686813,-500.0,0.00029863,4]
[327975681,1716732686824,-576.75,0.00029863,4]
[327975682,1716732686834,-615.98,0.00029863,4]
[327975683,1716732686843,-500.0,0.00029863,4]
[327975684,1716732686854,-767.17,0.00029863,4]
[327975685,1716732686864,-633.88,0.00029863,4]
[327975686,1716732686875,-500.0,0.00029863,4]
[327975687,1716732686884,-758.6,0.00029863,4]
[327975688,1716732686893,-1363.1,0.00029863,4]
[327975689,1716732686902,-500.0,0.00029863,4]
[327975690,1716732686911,-500.0,0.00029863,4]
[327975691,1716732686920,-535.29,0.00029863,4]
[327975692,1716732686931,-500.0,0.00029863,4]
[327975693,1716732686939,-295.4352034,0.00029863,4]
[327975694,1716732686948,-500.0,0.00029863,4]
[327975695,1716732686958,-596.76,0.00029863,4]
[327975696,1716732686967,-500.0,0.00029863,4]
[327975697,1716732686976,-500.0,0.00029863,4]
[327975698,1716732686985,-500.0,0.00029863,4]
[327975699,1716732686994,-500.0,0.00029863,4]
[327975700,1716732687003,-500.0,0.00029863,4]
[327975701,1716732687012,-500.0,0.00029863,4]
[327975702,1716732687021,-500.0,0.00029863,4]
[327975703,1716732687030,-500.0,0.00029863,4]
[327975704,1716732687039,-500.0,0.00029863,4]
[327975705,1716732687049,-500.0,0.00029863,4]
[327975706,1716732687058,-500.0,0.00029863,4]
[327975707,1716732687068,-500.0,0.00029863,4]
[327975708,1716732687077,-638.58,0.00029863,4]
[327975709,1716732687086,-500.0,0.00029863,4]
[327975710,1716732687096,-813.06,0.00029863,4]
[327975711,1716732687106,-676.35,0.00029863,4]
[327975712,1716732687115,-500.0,0.00029863,4]
[327975713,1716732687125,-1206.79,0.00029863,4]
[327975714,1716732687134,-500.0,0.00029863,4]
[327975715,1716732687144,-758.9,0.00029863,4]
[327975716,1716732687154,-500.0,0.00029863,4]
[327975717,1716732687164,-500.0,0.00029863,4]
[327975718,1716732687173,-500.0,0.00029863,4]
[327975719,1716732687183,-500.0,0.00029863,4]
[327975720,1716732687193,-500.0,0.00029863,4]
[327975721,1716732687203,-544.35,0.00029863,2]
[327975722,1716732687212,-500.0,0.00029863,4]
[327975723,1716732687222,-412.96355637,0.00029863,4]
[327975724,1716732687231,-500.0,0.00029863,4]
[327975725,1716732687240,-278.44427315,0.00029863,4]
[327975726,1716732687250,-500.0,0.00029863,4]
[327975727,1716732687260,-500.0,0.00029863,4]
[327975728,1716732687269,-500.0,0.00029863,4]
[327975729,1716732687279,-607.01,0.00029863,4]
[327975730,1716732687289,-869.48,0.00029863,4]
[327975731,1716732687298,-500.0,0.00029863,4]
[327975732,1716732687308,-500.0,0.00029863,4]
[327975733,1716732687317,-500.0,0.00029863,4]
[327975734,1716732687326,-598.19,0.00029863,4]
[327975735,1716732687336,-501.39,0.00029863,4]
[327975736,1716732687346,-565.06,0.00029863,4]
[327975737,1716732687355,-500.0,0.00029863,4]
[327975738,1716732687367,-536.08,0.00029863,4]
[327975739,1716732687391,-500.0,0.00029863,4]
[327975740,1716732687414,-500.0,0.00029863,4]
[327975741,1716732687499,-500.0,0.00029863,4]
[327975742,1716732687524,-500.0,0.00029863,4]
[327975743,1716732687547,-500.0,0.00029863,4]
[327975744,1716732687572,-500.0,0.00029863,4]
[327975745,1716732687596,-500.0,0.00029863,4]
[327975746,1716732687611,-500.0,0.00029863,4]
[327975747,1716732687632,-500.0,0.00029863,4]
[327975748,1716732687642,-241.19339434,0.00029863,4]
[327975749,1716732687651,-500.0,0.00029863,4]
[327975750,1716732687661,-500.0,0.00029863,4]
[327975751,1716732687670,-575.01,0.00029863,4]
[327975752,1716732687680,-500.0,0.00029863,4]
[327975753,1716732687689,-500.0,0.00029863,4]
[327975754,1716732687699,-500.0,0.00029863,4]
[327975755,1716732687708,-500.0,0.00029863,4]
[327975756,1716732687717,-179.19,0.00029863,4]
[327975757,1716732687727,-664.28,0.00029863,4]
[327975758,1716732687737,-500.0,0.00029863,4]
[327975759,1716732687747,-500.0,0.00029863,4]
[327975760,1716732687756,-500.0,0.00029863,4]
[327975761,1716732687766,-500.0,0.00029863,4]
[327975762,1716732687776,-1420.49,0.00029863,4]
[327975763,1716732687785,-500.0,0.00029863,4]
[327975764,1716732687794,-500.0,0.00029863,4]
[327975765,1716732687803,-500.0,0.00029863,4]
[327975766,1716732687813,-911.95,0.00029863,4]
[327975767,1716732687822,-532.91,0.00029863,4]
[327975768,1716732687832,-876.64,0.00029863,4]
[327975769,1716732687841,-845.02,0.00029863,4]
[327975771,1716732687851,-500.0,0.00029863,4]
[327975772,1716732687860,-1217.15,0.00029863,4]
[327975773,1716732687869,-500.0,0.00029863,4]
[327975774,1716732687878,-500.0,0.00029863,4]
[327975775,1716732687887,-500.0,0.00029863,4]
[327975776,1716732687897,-500.0,0.00029863,4]
[327975777,1716732687906,-1573.33,0.00029863,4]
[327975778,1716732687915,-500.0,0.00029863,4]
[327975779,1716732687924,-1943.35,0.00029863,4]
[327975780,1716732687934,-647.0,0.00029863,4]
[327975781,1716732687943,-827.18,0.00029863,4]
[327975782,1716732687952,-525.9,0.00029863,4]
[327975783,1716732687961,-1647.19,0.00029863,4]
[327975784,1716732687970,-656.92,0.00029863,4]
[327975785,1716732687979,-1479.16,0.00029863,4]
[327975786,1716732687989,-500.0,0.00029863,4]
[327975787,1716732687998,-859.25,0.00029863,4]
[327975788,1716732688008,-500.0,0.00029863,4]
[327975789,1716732688017,-705.7,0.00029863,4]
[327975790,1716732688027,-500.0,0.00029863,4]
[327975791,1716732688035,-852.83,0.00029863,4]
[327975792,1716732688044,-524.26,0.00029863,4]
[327975793,1716732688055,-792.18,0.00029863,4]
[327975794,1716732688063,-9047.47,0.00029863,4]
[327975795,1716732688073,-2563.75,0.00029863,4]
[327975796,1716732688082,-500.0,0.00029863,4]
[327975797,1716732688092,-500.0,0.00029863,4]
[327975798,1716732688102,-543.61,0.00029863,4]
[327975799,1716732688112,-937.7,0.00029863,4]
[327975800,1716732688121,-657.54,0.00029863,4]
[327975801,1716732688130,-1533.52,0.00029863,4]
[327975802,1716732688140,-782.0,0.00029863,4]
[327975803,1716732688149,-1870.6,0.00029863,4]
[327975804,1716732688159,-500.0,0.00029863,4]
[327975805,1716732688167,-523.58,0.00029863,4]
[327975806,1716732688176,-662.47,0.00029863,4]
[327975807,1716732688186,-611.87,0.00029863,4]
[327975808,1716732688195,-709.98,0.00029863,4]
[327975809,1716732688205,-500.0,0.00029863,4]
[327975810,1716732688214,-500.0,0.00029863,4]
[327975811,1716732688223,-739.81,0.00029863,4]
[327975812,1716732688233,-6199.76,0.00029863,4]
[327975813,1716732688243,-500.0,0.00029863,4]
[327975814,1716732688253,-724.86,0.00029863,4]
[327975815,1716732688262,-1320.63,0.00029863,4]
[327975816,1716732688271,-500.0,0.00029863,4]
[327975817,1716732688281,-500.0,0.00029863,4]
[327975818,1716732688290,-500.0,0.00029863,4]
[327975819,1716732688299,-852.95,0.00029863,4]
[327975820,1716732688309,-2564.82,0.00029863,4]
[327975821,1716732688319,-818.52,0.00029863,4]
[327975822,1716732688330,-571.73,0.00029863,4]
[327975823,1716732688340,-2538.12,0.00029863,4]
[327975824,1716732688349,-500.0,0.00029863,4]
[327975825,1716732688359,-598.56,0.00029863,4]
[327975826,1716732688368,-500.0,0.00029863,4]
[327975827,1716732688377,-2937.07,0.00029863,4]
[327975828,1716732688386,-1041.17,0.00029863,4]
[327975829,1716732688395,-500.0,0.00029863,4]
[327975830,1716732688405,-500.0,0.00029863,4]
[327975831,1716732688415,-656.51,0.00029863,4]
[327975832,1716732688426,-609.9650517,0.00029863,4]